fUSD/lending_fUSD_20250310
["ID","MTS","AMOUNT","RATE_DAILY","PERIOD"]
[355831281,1741633103717,-164.0,0.00044,120]
[355831282,1741633103743,-516.85814,0.00044,57]
[355831283,1741633103769,-429.21609709,0.00044005,30]
[355831284,1741633103795,-162.22768151,0.00044005,30]
[355831285,1741633103825,-279.78141075,0.00044005,30]
[355831286,1741633103850,-2156.79104,0.00044088,30]
[355831287,1741633103877,-429.21609709,0.00044248,30]
[355831288,1741633103903,-162.22768151,0.00044248,30]
[355831289,1741633103927,-279.78141075,0.00044248,30]
[355831290,1741633103952,-2156.79104,0.00044288,30]
[355831291,1741633103977,-200.0,0.00044352,120]
[355831292,1741633104003,-150.0,0.00044379,30]
[355831293,1741633104030,-500.0,0.00044383,120]
[355831294,1741633104064,-296.29629,0.000444,120]
[355831295,1741633104093,-810.39,0.000444,120]
[355831296,1741633104123,-5000.0,0.000444,120]
[355831297,1741633104150,-2156.79104,0.00044488,30]
[355831298,1741633104175,-429.21609709,0.00044491,30]
[355831299,1741633104200,-162.22768151,0.00044491,30]
[355831300,1741633104226,-279.78141075,0.00044491,30]
[355831301,1741633104251,-1066.83660529,0.0004452,120]
[355831302,1741633104276,-2156.79104,0.00044688,30]
[355831303,1741633104305,-2058.34783816,0.0004472,120]
[355831304,1741633104331,-429.21609709,0.00044734,30]
[355831305,1741633104358,-162.22768151,0.00044734,30]
[355831306,1741633104383,-279.78141075,0.00044734,30]
[355831307,1741633104411,-4539.7,0.00044875,117]
[355831308,1741633104437,-5100.0,0.0004488,33]
[355831309,1741633104462,-2156.79104,0.00044888,30]
[355831310,1741633104490,-5000.0,0.000449,120]
[355831311,1741633104520,-2678.0,0.00044948,58]
[355831312,1741633104554,-311.0,0.0004496,30]
[355831313,1741633104583,-207.0,0.0004496,30]
[355831314,1741633104613,-206.0,0.0004496,30]
[355831315,1741633104653,-270.0,0.0004496,30]
[355831316,1741633104698,-429.21609709,0.00044977,30]
[355831317,1741633104743,-162.22768151,0.00044977,30]
[355831318,1741633104782,-279.78141075,0.00044977,30]
[355831319,1741633104830,-150.0,0.00044995,30]
[355831320,1741633104873,-100000.0,0.00045,55]
[355831321,1741633104914,-158.2,0.00045,85]
[355831322,1741633104953,-309.67562154,0.00045,68]
[355831323,1741633104993,-151.0,0.00045,120]
[355831324,1741633105029,-151.0,0.00045,120]
[355831325,1741633105067,-1470.23919198,0.00045,120]
[355831326,1741633105101,-2179.81098196,0.00045,120]
[355831327,1741633105138,-1068.50975654,0.00045,60]
[355831328,1741633105174,-1478.82490233,0.00045,60]
[355831329,1741633105208,-2596.75216583,0.00045,120]
[355831330,1741633105244,-861.94589702,0.00045,120]
[355831331,1741633105289,-4352.2,0.00045,120]
[355831332,1741633105329,-193.0,0.00045,60]
[355831333,1741633105365,-1000.0,0.00045,120]
[355831334,1741633105400,-1177.20375558,0.00045,120]
[355831335,1741633105438,-1200.0,0.00045,120]
[355831336,1741633105478,-50000.0,0.00045,120]
[355831337,1741633105515,-1000.0,0.00045,120]
[355831338,1741633105554,-1000.0,0.00045,30]
[355831339,1741633105592,-1000.0,0.00045,30]
[355831340,1741633105629,-2671.32,0.00045,120]
[355831341,1741633105666,-200.0,0.0004508,120]
[355831342,1741633105707,-2156.79104,0.00045088,30]
[355831343,1741633105748,-350.0,0.00045205,120]
[355831344,1741633105788,-350.0,0.00045205,120]
[355831345,1741633105827,-350.0,0.00045205,120]
[355831346,1741633105863,-350.0,0.00045205,120]
[355831347,1741633105900,-350.0,0.00045205,120]
[355831348,1741633105938,-350.0,0.00045205,120]
[355831349,1741633105975,-350.0,0.00045205,120]
[355831350,1741633106011,-350.0,0.00045205,120]
[355831351,1741633106048,-350.0,0.00045205,120]
[355831352,1741633106086,-350.0,0.00045205,120]
[355831353,1741633106122,-350.0,0.00045205,120]
[355831354,1741633106161,-350.0,0.00045205,120]
[355831355,1741633106199,-350.0,0.00045205,120]
[355831356,1741633106235,-350.0,0.00045205,120]
[355831357,1741633106272,-350.0,0.00045205,120]
[355831358,1741633106310,-350.0,0.00045205,120]
[355831359,1741633106348,-350.0,0.00045205,120]
[355831360,1741633106384,-350.0,0.00045205,120]
[355831361,1741633106423,-350.0,0.00045205,120]
[355831362,1741633106463,-350.0,0.00045205,120]
[355831363,1741633106504,-350.0,0.00045205,120]
[355831364,1741633106546,-402.52575698,0.00045205,120]
[355831365,1741633106595,-429.21609709,0.0004522,30]
[355831366,1741633106635,-162.22768151,0.0004522,30]
[355831367,1741633106674,-279.78141075,0.0004522,30]
[355831368,1741633106713,-2156.79104,0.00045288,30]
[355831369,1741633106751,-999.68136614,0.00045321,30]
[355831370,1741633106791,-5000.0,0.000454,120]
[355831371,1741633106831,-429.21609709,0.00045463,30]
[355831372,1741633106868,-162.22768151,0.00045463,30]
[355831373,1741633106907,-279.78141075,0.00045463,30]
[355831374,1741633106945,-500.0,0.00045479,120]
[355831375,1741633106981,-2156.79104,0.00045488,30]
[355831376,1741633107019,-839.40490152,0.000455,120]
[355831377,1741633107060,-150.0,0.00045612,30]
[355831378,1741633107095,-150.0,0.00045633,30]
[355831379,1741633107131,-177.96967454,0.00045633,30]
[355831380,1741633107165,-150.0,0.00045633,30]
[355831381,1741633107193,-150.0,0.00045633,30]
[355831382,1741633107602,-150.0,0.00045633,30]
[355831383,1741633107729,-2043.36163482,0.00045633,30]
[355831384,1741633107760,-962.47555356,0.00045633,30]
[355831385,1741633107788,-18106.46366499,0.00045633,30]
[355831386,1741633107819,-1653.13584278,0.00045633,30]
[355831387,1741633107847,-2156.79104,0.00045688,30]
[355831388,1741633107874,-423.62828941,0.000457,120]
[355831389,1741633107902,-429.21609709,0.00045706,30]
[355831390,1741633107927,-162.22768151,0.00045706,30]
[355831391,1741633107951,-279.78141075,0.00045706,30]
[355831392,1741633107975,-150.0,0.00045766,30]
[355831393,1741633108000,-1000.0,0.000458,30]
[355831394,1741633108025,-200.0,0.00045807,120]
[355831395,1741633108053,-2156.79104,0.00045888,30]
[355831396,1741633108078,-296.29629,0.000459,120]
[355831397,1741633108104,-5000.0,0.000459,120]
[355831398,1741633108130,-429.21609709,0.00045949,30]
[355831399,1741633108156,-162.22768151,0.00045949,30]
[355831400,1741633108182,-279.78141075,0.00045949,30]
[355831401,1741633108206,-1000.0,0.00046,30]
[355831402,1741633108230,-3049.83991367,0.00046,30]
[355831403,1741633108259,-1000.0,0.00046,120]
[355831404,1741633108284,-1278.74676359,0.00046,120]
[355831405,1741633108314,-1000.0,0.00046,120]
[355831406,1741633108341,-164.0,0.00046,120]
[355831407,1741633108366,-152.0,0.00046,90]
[355831408,1741633108392,-2156.79104,0.00046088,30]
[355831409,1741633108417,-429.21609709,0.00046192,30]
[355831410,1741633108443,-162.22768151,0.00046192,30]
[355831411,1741633108468,-279.78141075,0.00046192,30]
[355831412,1741633108494,-214.16206855,0.000462,120]
[355831413,1741633108519,-150.0,0.00046229,30]
[355831414,1741633108545,-2156.79104,0.00046288,30]
[355831415,1741633108574,-5000.0,0.000464,120]
[355831416,1741633108601,-429.21609709,0.00046435,30]
[355831417,1741633108627,-162.22768151,0.00046435,30]
[355831418,1741633108655,-279.78141075,0.00046435,30]
[355831419,1741633108682,-2156.79104,0.00046488,30]
[355831420,1741633108708,-200.0,0.00046535,120]
[355831421,1741633108734,-500.0,0.00046575,120]
[355831422,1741633108760,-50000.0,0.00046575,120]
[355831423,1741633108786,-1548.8,0.00046575,120]
[355831424,1741633108815,-675.53,0.00046575,120]
[355831425,1741633108840,-1918.01,0.00046575,120]
[355831426,1741633108865,-3000.0,0.00046575,120]
[355831427,1741633108892,-2672.84,0.00046575,120]
[355831428,1741633108917,-500.0,0.00046575,120]
[355831429,1741633108942,-3000.0,0.00046575,120]
[355831430,1741633108968,-359.75263632,0.00046575,120]
[355831431,1741633108992,-1000.0,0.00046575,120]
[355831432,1741633109017,-500.0,0.00046575,120]
[355831433,1741633109043,-1000.0,0.00046575,120]
[355831434,1741633109072,-1000.0,0.00046575,120]
[355831435,1741633109097,-500.0,0.00046575,120]
[355831436,1741633109123,-500.0,0.00046575,120]
[355831437,1741633109148,-800.31,0.00046575,120]
[355831438,1741633109173,-800.31,0.00046575,120]
[355831439,1741633109198,-800.31,0.00046575,120]
[355831440,1741633109223,-800.31,0.00046575,120]
[355831441,1741633109250,-800.31,0.00046575,120]
[355831442,1741633109280,-800.31,0.00046575,120]
[355831443,1741633109308,-800.31,0.00046575,120]
[355831444,1741633109336,-800.31,0.00046575,120]
[355831445,1741633109366,-800.31,0.00046575,120]
[355831446,1741633109394,-800.31,0.00046575,120]
[355831447,1741633109421,-800.31,0.00046575,120]
[355831448,1741633109446,-800.31,0.00046575,120]
[355831449,1741633109476,-800.31,0.00046575,120]
[355831450,1741633109503,-800.31,0.00046575,120]
[355831451,1741633109533,-800.31,0.00046575,120]
[355831452,1741633109560,-800.31,0.00046575,120]
[355831453,1741633109584,-800.31,0.00046575,120]
[355831454,1741633109610,-800.31,0.00046575,120]
[355831455,1741633109637,-800.31,0.00046575,120]
[355831456,1741633109662,-800.31,0.00046575,120]
[355831457,1741633109689,-800.31,0.00046575,120]
[355831458,1741633109715,-800.31,0.00046575,120]
[355831459,1741633109743,-800.31,0.00046575,120]
[355831460,1741633109770,-800.49899627,0.00046575,120]
[355831461,1741633109804,-1785.88,0.00046575,120]
[355831462,1741633109835,-2000.0,0.00046575,120]
[355831463,1741633109865,-429.21609709,0.00046678,30]
[355831464,1741633109896,-162.22768151,0.00046678,30]
[355831465,1741633109925,-279.78141075,0.00046678,30]
[355831466,1741633109954,-2156.79104,0.00046688,30]
[355831467,1741633109984,-2000.0,0.00046706,120]
[355831468,1741633110016,-1831.77753977,0.000468,60]
[355831469,1741633110048,-2000.0,0.00046836,120]
[355831470,1741633110086,-150.0,0.00046846,30]
[355831471,1741633110120,-500.0,0.00046849,120]
[355831472,1741633110152,-1548.8,0.00046849,120]
[355831473,1741633110184,-1918.01,0.00046849,120]
[355831474,1741633110215,-1651.42,0.00046849,120]
[355831475,1741633110246,-2156.79104,0.00046888,30]
[355831476,1741633110277,-5000.0,0.000469,120]
[355831477,1741633110311,-1785.88,0.00046904,120]
[355831478,1741633110342,-429.21609709,0.00046921,30]
[355831479,1741633110370,-162.22768151,0.00046921,30]
[355831480,1741633110399,-279.78141075,0.00046921,30]
[355831481,1741633110427,-2000.0,0.00046967,120]
[355831482,1741633110454,-311.0,0.0004698,30]
[355831483,1741633110723,-207.0,0.0004698,30]
[355831484,1741633110756,-206.0,0.0004698,30]
[355831485,1741633110791,-270.0,0.0004698,30]
[355831486,1741633110853,-1000.0,0.00046999,120]
[355831487,1741633110884,-1000.0,0.00047,120]
[355831488,1741633110912,-1000.0,0.00047,120]
[355831489,1741633110942,-2000.0,0.00047097,120]
[355831490,1741633110972,-500.0,0.00047123,120]
[355831491,1741633111001,-1548.8,0.00047123,120]
[355831492,1741633111031,-1918.01,0.00047123,120]
[355831493,1741633111069,-429.21609709,0.00047164,30]
[355831494,1741633111100,-162.22768151,0.00047164,30]
[355831495,1741633111340,-279.78141075,0.00047164,30]
[355831496,1741633111373,-2000.0,0.00047228,120]
[355831497,1741633111405,-1785.88,0.00047232,120]
[355831498,1741633111434,-3443.13,0.00047235,120]
[355831499,1741633111464,-200.0,0.00047262,120]
[355831500,1741633111494,-2000.0,0.00047358,120]
[355831501,1741633111529,-500.0,0.00047397,120]
[355831502,1741633111562,-1548.8,0.00047397,120]
[355831503,1741633111590,-1918.01,0.00047397,120]
[355831504,1741633111621,-200.0,0.000474,120]
[355831505,1741633111649,-296.29629,0.000474,120]
[355831506,1741633111681,-429.21609709,0.00047407,30]
[355831507,1741633111712,-162.22768151,0.00047407,30]
[355831508,1741633111743,-279.78141075,0.00047407,30]
[355831509,1741633111773,-150.0,0.00047463,30]
[355831510,1741633111809,-2000.0,0.00047489,120]
[355831511,1741633111837,-217.34462113,0.000475,120]
[355831512,1741633111866,-187.563,0.000475,120]
[355831513,1741633111895,-187.564,0.000475,120]
[355831514,1741633111922,-1785.88,0.00047561,120]
[355831515,1741633111949,-2000.0,0.00047619,120]
[355831516,1741633111976,-429.21609709,0.0004765,30]
[355831517,1741633112004,-162.22768151,0.0004765,30]
[355831518,1741633112030,-279.78141075,0.0004765,30]
[355831519,1741633112063,-500.0,0.00047671,120]
[355831520,1741633112090,-1548.8,0.00047671,120]
[355831521,1741633112120,-1918.01,0.00047671,120]
[355831522,1741633112148,-500.0,0.00047671,120]
[355831523,1741633112176,-2000.0,0.000477,120]
[355831524,1741633112204,-2000.0,0.000477,120]
[355831525,1741633112235,-2000.0,0.0004775,120]
[355831526,1741633112266,-152.0,0.00047823,90]
[355831527,1741633112299,-1311.11,0.00047841,120]
[355831528,1741633112338,-2000.0,0.0004788,120]
[355831529,1741633112371,-1785.88,0.0004789,120]
[355831530,1741633112401,-429.21609709,0.00047893,30]
[355831531,1741633112430,-162.22768151,0.00047893,30]
[355831532,1741633112457,-279.78141075,0.00047893,30]
[355831533,1741633112492,-5000.0,0.000479,120]
[355831534,1741633112521,-500.0,0.00047945,120]
[355831535,1741633112551,-1548.8,0.00047945,120]
[355831536,1741633112587,-1918.01,0.00047945,120]
[355831537,1741633112614,-200.0,0.0004799,120]
[355831538,1741633112642,-1000.0,0.00047999,120]
[355831539,1741633112669,-1000.0,0.00048,120]
[355831540,1741633112696,-1000.0,0.00048,120]
[355831541,1741633112723,-201.38114654,0.00048,120]
[355831542,1741633112751,-5000.0,0.00048,120]
[355831543,1741633112784,-1278.74676359,0.00048,120]
[355831544,1741633112817,-1000.0,0.00048,120]
[355831545,1741633112847,-164.0,0.00048,120]
[355831546,1741633112878,-2000.0,0.0004801,120]
[355831547,1741633112906,-867.81390712,0.00048024,120]
[355831548,1741633112934,-150.0,0.0004808,30]
[355831549,1741633112961,-429.21609709,0.00048136,30]
[355831550,1741633112990,-162.22768151,0.00048136,30]
[355831551,1741633113021,-279.78141075,0.00048136,30]
[355831552,1741633113051,-2000.0,0.00048141,120]
[355831553,1741633113088,-500.0,0.00048219,120]
[355831554,1741633113117,-1548.8,0.00048219,120]
[355831555,1741633113146,-1918.01,0.00048219,120]
[355831556,1741633113174,-1785.88,0.00048219,120]
[355831557,1741633113204,-2000.0,0.00048271,120]
[355831558,1741633113234,-429.21609709,0.00048379,30]
[355831559,1741633113263,-162.22768151,0.00048379,30]
[355831560,1741633113294,-279.78141075,0.00048379,30]
[355831561,1741633113326,-261.5093411,0.000484,30]
[355831562,1741633113355,-2000.0,0.00048402,120]
[355831563,1741633113386,-500.0,0.00048493,120]
[355831564,1741633113630,-1548.8,0.00048493,120]
[355831565,1741633113661,-1918.01,0.00048493,120]
[355831566,1741633113693,-2000.0,0.00048532,120]
[355831567,1741633113726,-1785.88,0.00048547,120]
[355831568,1741633113756,-370.94651465,0.000486,120]
[355831569,1741633113787,-429.21609709,0.00048622,30]
[355831570,1741633113822,-162.22768151,0.00048622,30]
[355831571,1741633113850,-279.78141075,0.00048622,30]
[355831572,1741633113879,-2000.0,0.00048663,120]
[355831573,1741633113908,-150.0,0.00048697,30]
[355831574,1741633113936,-200.0,0.00048718,120]
[355831575,1741633113964,-171.92294435,0.00048767,120]
[355831576,1741633113994,-1548.8,0.00048767,120]
[355831577,1741633114024,-1918.01,0.00048767,120]
[355831578,1741633114053,-500.0,0.00048767,120]
[355831579,1741633114087,-2000.0,0.00048793,120]
[355831580,1741633114116,-1090.75130288,0.000488,120]
[355831581,1741633114146,-2475.15058851,0.000488,120]
[355831582,1741633114176,-737.76884001,0.000488,120]
[355831583,1741633114207,-6093.017664,0.000488,120]
[355831584,1741633114236,-3443.13,0.00048823,120]
[355831585,1741633114267,-390000.0,0.0004886,120]
[355831586,1741633114297,-429.21609709,0.00048865,30]
[355831587,1741633114574,-162.22768151,0.00048865,30]
[355831588,1741633114607,-279.78141075,0.00048865,30]
[355831589,1741633114636,-1785.88,0.00048876,120]
[355831590,1741633114668,-240.28392634,0.0004888,120]
[355831591,1741633114696,-1167.18687997,0.000489,120]
[355831592,1741633114724,-296.29632,0.000489,120]
[355831593,1741633114751,-5000.0,0.000489,120]
[355831594,1741633114779,-2000.0,0.00048924,120]
[355831595,1741633114809,-211.0,0.0004899,30]
[355831596,1741633114837,-311.0,0.0004899,30]
[355831597,1741633114864,-207.0,0.0004899,30]
[355831598,1741633114891,-206.0,0.0004899,30]
[355831599,1741633114916,-206.0,0.0004899,30]
[355831600,1741633114942,-270.0,0.0004899,30]
[355831601,1741633114968,-1000.0,0.00048999,120]
[355831602,1741633114994,-751.48554569,0.00049,30]
[355831603,1741633115021,-1000.0,0.00049,60]
[355831604,1741633115049,-1000.0,0.00049,120]
[355831605,1741633115082,-1548.8,0.00049041,120]
[355831606,1741633115108,-1918.01,0.00049041,120]
[355831607,1741633115135,-2000.0,0.00049054,120]
[355831608,1741633115162,-429.21609709,0.00049108,30]
[355831609,1741633115189,-162.22768151,0.00049108,30]
[355831610,1741633115215,-279.78141075,0.00049108,30]
[355831611,1741633115244,-2000.0,0.00049185,120]
[355831612,1741633115274,-1785.88,0.00049205,120]
[355831613,1741633115312,-150.0,0.00049314,30]
[355831614,1741633115340,-227.01590999,0.00049315,120]
[355831615,1741633115367,-47653.69,0.00049315,120]
[355831616,1741633115394,-1548.8,0.00049315,120]
[355831617,1741633115422,-1918.01,0.00049315,120]
[355831618,1741633115449,-500.0,0.00049315,120]
[355831619,1741633115479,-500.0,0.00049315,120]
[355831620,1741633115506,-500.0,0.00049315,120]
[355831621,1741633115537,-500.0,0.00049315,120]
[355831622,1741633115567,-500.0,0.00049315,120]
[355831623,1741633115596,-500.0,0.00049315,120]
[355831624,1741633115626,-500.0,0.00049315,120]
[355831625,1741633115657,-500.0,0.00049315,120]
[355831626,1741633115688,-500.0,0.00049315,120]
[355831627,1741633115715,-500.0,0.00049315,120]
[355831628,1741633115742,-500.0,0.00049315,120]
[355831629,1741633115769,-500.0,0.00049315,120]
[355831630,1741633115794,-500.0,0.00049315,120]
[355831631,1741633115823,-500.0,0.00049315,120]
[355831632,1741633115854,-623.66,0.00049315,120]
[355831633,1741633115882,-2000.0,0.00049315,120]
[355831634,1741633115910,-500.0,0.00049315,30]
[355831635,1741633115940,-500.0,0.00049315,30]
[355831636,1741633115968,-429.21609709,0.00049351,30]
[355831637,1741633115996,-162.22768151,0.00049351,30]
[355831638,1741633116024,-279.78141075,0.00049351,30]
[355831639,1741633116051,-159.72210863,0.000494,120]
[355831640,1741633116083,-375.0,0.000494,120]
[355831641,1741633116110,-200.0,0.00049445,120]
[355831642,1741633116138,-2000.0,0.00049446,120]
[355831643,1741633116165,-2000000.0,0.000495,120]
[355831644,1741633116193,-1785.88,0.00049534,120]
[355831645,1741633116219,-2000.0,0.00049576,120]
[355831646,1741633116245,-1548.8,0.00049589,120]
[355831647,1741633116272,-1918.01,0.00049589,120]
[355831648,1741633116298,-429.21609709,0.00049594,30]
[355831649,1741633116329,-162.22768151,0.00049594,30]
[355831650,1741633116355,-279.78141075,0.00049594,30]
[355831651,1741633116381,-2000.0,0.00049706,120]
[355831652,1741633116408,-2042.16319,0.0004971,30]
[355831653,1741633116435,-2543.81149481,0.000498,120]
[355831654,1741633116467,-429.21609709,0.00049837,30]
[355831655,1741633116498,-162.22768151,0.00049837,30]
[355831656,1741633116527,-279.78141075,0.00049837,30]
[355831657,1741633116571,-2000.0,0.00049837,120]
[355831658,1741633116606,-1434.59012,0.0004986,30]
[355831659,1741633116636,-1548.8,0.00049863,120]
[355831660,1741633116665,-1918.01,0.00049863,120]
[355831661,1741633116692,-500.0,0.00049863,120]
[355831662,1741633116720,-1785.88,0.00049863,120]
[355831663,1741633116748,-1000.0,0.0004987,120]
[355831664,1741633116775,-2533.38289526,0.000499,120]
[355831665,1741633116802,-5000.0,0.000499,120]
[355831666,1741633116834,-150.0,0.0004993,30]
[355831667,1741633116865,-2000.0,0.00049967,120]
[355831668,1741633116894,-1000.0,0.00049999,120]
[355831669,1741633116923,-100000.0,0.0005,60]
[355831670,1741633116950,-1915.22760472,0.0005,120]
[355831671,1741633116978,-108811.85716833,0.0005,120]
[355831672,1741633126970,-423.85663573,0.00027598,35]
[355831673,1741633127005,-2860.0,0.00027598,60]
[355831674,1741633127041,-2188.3,0.00027598,120]
[355831675,1741633127077,-2188.3,0.00027598,120]
[355831676,1741633127110,-2188.3,0.00027598,120]
[355831677,1741633127143,-2188.3,0.00027598,120]
[355831678,1741633127175,-2188.3,0.00027598,120]
[355831679,1741633127209,-2188.3,0.00027598,120]
[355831680,1741633127243,-2188.3,0.00027598,120]
[355831681,1741633127277,-2188.3,0.00027598,120]
[355831682,1741633127311,-2188.3,0.00027598,120]
[355831683,1741633127352,-2188.3,0.00027598,120]
[355831684,1741633127386,-2188.3,0.00027598,120]
[355831685,1741633127418,-2188.3,0.00027598,120]
[355831686,1741633127451,-2188.3,0.00027598,120]
[355831687,1741633127482,-2188.3,0.00027598,120]
[355831688,1741633127510,-2188.3,0.00027598,120]
[355831689,1741633127544,-2188.3,0.00027598,120]
[355831690,1741633127574,-2188.3,0.00027598,120]
[355831691,1741633127604,-2188.3,0.00027598,120]
[355831692,1741633127639,-2188.3,0.00027598,120]
[355831693,1741633127670,-2188.3,0.00027598,120]
[355831694,1741633127705,-2188.3,0.00027598,120]
[355831695,1741633127738,-2188.3,0.00027598,120]
[355831696,1741633127770,-2188.3,0.00027598,120]
[355831697,1741633127801,-2188.33553174,0.00027598,120]
[355831698,1741633127832,-159.67203,0.00027598,120]
[355831699,1741633127865,-956.9124281,0.00027598,120]
[355831700,1741633127899,-505.03910814,0.00027598,120]
[355831701,1741633127933,-500.0,0.00027598,120]
[355831702,1741633127966,-511.25731439,0.00027598,120]
[355831703,1741633127998,-500.0,0.00027598,120]
[355831704,1741633128033,-500.0,0.00027598,120]
[355831705,1741633128078,-370.76384305,0.00027598,120]
[355831706,1741633128111,-500.0,0.00027598,120]
[355831707,1741633128143,-500.0,0.00027598,120]
[355831708,1741633128177,-532.99017153,0.00027598,120]
[355831709,1741633128212,-545.69869343,0.00027598,120]
[355831710,1741633128246,-500.0,0.00027598,120]
[355831711,1741633128280,-513.48412005,0.00027598,120]
[355831712,1741633128321,-500.0,0.00027598,120]
[355831713,1741633128354,-511.62736088,0.00027598,120]
[355831714,1741633128385,-500.0,0.00027598,120]
[355831715,1741633128415,-500.0,0.00027598,120]
[355831716,1741633128445,-500.0,0.00027598,120]
[355831717,1741633128476,-500.0,0.00027598,120]
[355831718,1741633128505,-500.0,0.00027598,120]
[355831719,1741633128537,-500.0,0.00027598,120]
[355831720,1741633128567,-500.0,0.00027598,120]
[355831721,1741633128594,-500.0,0.00027598,120]
[355831722,1741633128622,-523.08392696,0.00027598,120]
[355831723,1741633128650,-500.0,0.00027598,120]
[355831724,1741633128676,-500.0,0.00027598,120]
[355831725,1741633128702,-500.0,0.00027598,120]
[355831726,1741633128729,-500.0,0.00027598,120]
[355831727,1741633128757,-500.0,0.00027598,120]
[355831728,1741633128784,-602.16554462,0.00027598,120]
[355831729,1741633128810,-500.0,0.00027598,120]
[355831730,1741633128839,-500.0,0.00027598,120]
[355831731,1741633128865,-500.0,0.00027598,120]
[355831732,1741633128892,-500.0,0.00027598,120]
[355831733,1741633128919,-500.0,0.00027598,120]
[355831734,1741633128945,-503.15279246,0.00027598,120]
[355831735,1741633128973,-545.17694271,0.00027598,120]
[355831736,1741633128999,-500.0,0.00027598,120]
[355831737,1741633129027,-500.0,0.00027598,120]
[355831738,1741633129053,-500.0,0.00027598,120]
[355831739,1741633129085,-500.0,0.00027598,120]
[355831740,1741633129112,-500.0,0.00027598,120]
[355831741,1741633129138,-500.0,0.00027598,120]
[355831742,1741633129451,-515.1825311,0.00027598,120]
[355831743,1741633129483,-500.0,0.00027598,120]
[355831744,1741633129510,-500.0,0.00027598,120]
[355831745,1741633129540,-500.0,0.00027598,120]
[355831746,1741633129573,-500.0,0.00027598,120]
[355831747,1741633129599,-500.0,0.00027598,120]
[355831748,1741633129628,-500.0,0.00027598,120]
[355831749,1741633129657,-500.0,0.00027598,120]
[355831750,1741633129686,-500.0,0.00027598,120]
[355831751,1741633129715,-500.0,0.00027598,120]
[355831752,1741633129743,-151.32370001,0.00027598,120]
[355831753,1741633129772,-500.0,0.00027598,120]
[355831754,1741633129801,-500.0,0.00027598,120]
[355831755,1741633129834,-500.0,0.00027598,120]
[355831756,1741633129864,-500.0,0.00027598,120]
[355831757,1741633129894,-550.11268767,0.00027598,120]
[355831758,1741633129924,-319.61651009,0.00027598,120]
[355831759,1741633129952,-500.0,0.00027598,120]
[355831760,1741633129979,-506.19910224,0.00027598,120]
[355831761,1741633130007,-500.0,0.00027598,120]
[355831762,1741633130034,-500.0,0.00027598,120]
[355831763,1741633130061,-500.0,0.00027598,120]
[355831764,1741633130095,-500.0,0.00027598,120]
[355831765,1741633130121,-500.0,0.00027598,120]
[355831766,1741633130147,-500.0,0.00027598,120]
[355831767,1741633130174,-350.61117043,0.00027598,120]
[355831768,1741633130202,-583.85847007,0.00027598,120]
[355831769,1741633130229,-500.0,0.00027598,120]
[355831770,1741633130258,-500.0,0.00027598,120]
[355831771,1741633130284,-500.0,0.00027598,120]
[355831772,1741633130311,-500.0,0.00027598,120]
[355831773,1741633130345,-500.0,0.00027598,120]
[355831774,1741633130372,-500.0,0.00027598,120]
[355831775,1741633130399,-500.0,0.00027598,120]
[355831776,1741633130425,-516.03695832,0.00027598,120]
[355831777,1741633130451,-500.0,0.00027598,120]
[355831778,1741633130478,-500.0,0.00027598,120]
[355831779,1741633130504,-500.0,0.00027598,120]
[355831780,1741633130533,-500.0,0.00027598,120]